bitfinex-derivatives/quotes_SOLF0:USTF0_20230103
["timestamp","ask_amount","ask_price","bid_price","bid_amount"]
[1672745462812,4.0,11.941,11.935,0.0688695]
[1672745463442,16.71,11.942,11.935,0.0688695]
[1672745465756,16.71,11.94,11.935,0.0688695]
[1672745465960,16.71,11.94,11.935,6.95e-05]
[1672745466280,16.56,11.937,11.933,0.04961125]
[1672745468276,4.07145745,11.939,11.933,0.04961125]
[1672745468277,16.71,11.935,11.933,0.04961125]
[1672745468803,4.0,11.934,11.917,16.71]
[1672745469013,16.71,11.931,11.919,46.7835]
[1672745469325,16.71,11.931,11.92,4.0]
[1672745469852,16.71,11.931,11.921,0.06216335]
[1672745470057,0.0648354,11.93,11.921,0.06216335]
[1672745471009,4.0648354,11.93,11.921,0.06216335]
[1672745471217,0.0648354,11.93,11.921,0.06216335]
[1672745481837,16.62,11.928,11.921,0.06216335]
[1672745482049,4.0,11.927,11.921,0.06216335]
[1672745482571,20.62,11.928,11.921,0.06216335]
[1672745482991,16.62,11.928,11.921,0.06216335]
[1672745483411,16.40130977,11.928,11.921,0.06216335]
[1672745484988,0.0648354,11.93,11.926,4.0]
[1672745485828,0.0648354,11.93,11.924,0.06026812]
[1672745492239,4.0648354,11.93,11.924,6.812e-05]
[1672745493497,16.71,11.928,11.924,6.812e-05]
[1672745493706,4.0,11.927,11.924,6.812e-05]
[1672745493917,4.0,11.927,11.921,0.06461935]
[1672745494124,16.77059875,11.928,11.92,0.06452111]
[1672745494335,16.77059875,11.928,11.92,0.06926015]
[1672745502215,16.77059875,11.928,11.92,16.76926015]
[1672745502216,0.06059875,11.928,11.92,16.76926015]
[1672745502848,0.06059875,11.928,11.921,4.0]
[1672745504844,16.71,11.933,11.928,0.10538967]
[1672745514505,4.0,11.932,11.928,8.967e-05]
[1672745517136,16.71,11.933,11.928,8.967e-05]
[1672745523964,4.0,11.933,11.928,8.967e-05]
[1672745526899,3.84173062,11.933,11.928,8.967e-05]
[1672745527745,16.7,11.934,11.928,8.967e-05]
[1672745527957,0.06653687,11.935,11.928,8.967e-05]
[1672745540456,16.75,11.938,11.935,0.12535085]
[1672745545607,4.0,11.937,11.935,5.085e-05]
[1672745546023,16.75,11.938,11.935,5.085e-05]
[1672745554013,16.75,11.938,11.932,0.06874856]
[1672745557376,67.0622,11.94,11.932,0.06874856]
[1672745559474,66.87007346,11.94,11.932,0.06874856]
[1672745559894,16.74,11.94,11.932,0.06874856]
[1672745569248,0.0640169,11.941,11.932,0.06874856]
[1672745569455,0.12521774,11.932,11.93,16.75]
[1672745569669,4.0,11.94,11.931,4.0]
[1672745569980,4.0,11.942,11.931,4.0]
[1672745570508,0.06042918,11.941,11.932,0.06693104]
[1672745570718,0.06042918,11.941,11.936,16.59]
[1672745570929,16.75,11.951,11.939,16.75]
[1672745571139,16.75,11.951,11.94,4.0]
[1672745571878,0.06042952,11.95,11.941,0.06164613]
[1672745575550,0.06042952,11.95,11.941,16.81164613]
[1672745578492,0.06042952,11.95,11.941,0.06164613]
[1672745583848,16.75,11.953,11.95,0.15965298]
[1672745584058,4.0,11.952,11.942,4.0]
[1672745584795,0.06105578,11.951,11.943,0.07139234]
[1672745589092,0.06105578,11.951,11.943,16.82139234]
[1672745589623,66.98,11.97,11.948,16.62]
[1672745589624,48.5851,11.959,11.948,16.62]
[1672745589933,48.5851,11.959,11.949,4.0]
[1672745590144,16.75,11.96,11.949,4.0]
[1672745590354,16.75,11.97,11.956,16.59]
[1672745590563,0.06069106,11.967,11.959,0.0680977]
[1672745590984,50.0,11.997,11.957,4.0]
[1672745591195,116.82685649,12.018,11.957,4.0]
[1672745591196,98.9167,12.007,11.96,4.0]
[1672745591408,16.74,11.991,11.977,16.62]
[1672745591621,16.75,11.988,11.975,16.62]
[1672745591826,50.0,11.987,11.975,16.62]
[1672745592042,16.75,11.98,11.967,16.75]
[1672745592248,4.0,11.979,11.964,49.91942995]
[1672745592569,50.0,11.987,11.965,62.68]
[1672745592879,47.3665,11.986,11.966,4.0]
[1672745593095,16.67,11.976,11.966,4.0]
[1672745593302,4.0,11.976,11.967,0.06101121]
[1672745593513,16.75,11.968,11.967,0.0644671]
[1672745593725,66.75,11.968,11.944,49.91942995]
[1672745593934,51.3665,11.967,11.945,4.0]
[1672745594145,16.75,11.96,11.947,16.75]
[1672745594570,16.75,11.96,11.949,0.06789558]
[1672745594779,0.06051194,11.958,11.949,0.06789558]
[1672745595194,4.0,11.956,11.949,0.06789558]
[1672745595406,16.75,11.95,11.949,0.06789558]
[1672745595621,16.75,11.95,11.945,0.06956914]
[1672745595825,0.06334747,11.952,11.943,1.16511185]
[1672745597090,16.75,11.944,11.943,1.16511185]
[1672745597299,4.0,11.943,11.928,16.62]
[1672745597505,16.75,11.941,11.929,4.0]
[1672745598244,0.06429954,11.939,11.931,0.06221704]
[1672745598867,50.0,11.958,11.932,4.0]
[1672745599081,4.0,11.951,11.932,4.0]
[1672745599710,4.0,11.947,11.932,4.0]
[1672745599920,0.06759013,11.944,11.935,0.0663634]
[1672745600128,0.06759013,11.944,11.935,16.6363634]
[1672745600340,0.06759013,11.944,11.935,20.6363634]
[1672745600557,0.06759013,11.944,11.938,16.73]
[1672745600764,0.06759013,11.944,11.939,4.0]
[1672745603707,16.69,11.953,11.941,16.65]
[1672745603918,16.69,11.953,11.942,4.0]
[1672745604654,16.73,11.956,11.944,16.69]
[1672745604865,50.0,11.968,11.946,16.68]
[1672745605173,49.7772,11.967,11.947,4.0]
[1672745605388,4.0,11.966,11.947,4.0]
[1672745605808,16.68,11.956,11.947,4.0]
[1672745606015,16.68,11.953,11.947,0.06615034]
[1672745606225,16.53,11.95,11.946,0.06022438]
[1672745606437,16.53,11.95,11.944,0.06879304]
[1672745608328,16.68,11.947,11.944,0.06879304]
[1672745608540,4.0,11.946,11.934,66.59942995]
[1672745609377,0.06407031,11.944,11.936,0.06908034]
[1672745609592,16.59332013,11.944,11.936,0.06908034]
[1672745610011,4.0,11.943,11.936,0.06908034]
[1672745610432,16.59332013,11.944,11.936,0.06908034]
[1672745610960,0.06332013,11.944,11.936,0.06908034]
[1672745612639,0.06332013,11.944,11.937,4.0]
[1672745615270,16.68,11.957,11.943,16.68]
[1672745615475,4.0,11.956,11.944,53.91942995]
[1672745615795,4.0,11.956,11.945,4.0]
[1672745616211,4.0,11.956,11.946,0.07018165]
[1672745616421,16.68,11.957,11.946,0.07018165]
[1672745619266,16.68,11.954,11.946,0.07018165]
[1672745619577,4.0,11.953,11.946,0.06990312]
[1672745620104,16.68,11.954,11.946,0.06990312]
[1672745623356,16.68,11.956,11.946,0.06990312]
[1672745623571,4.0,11.955,11.946,0.06990312]
[1672745624198,16.68,11.956,11.946,0.06990312]
[1672745624412,16.68,11.959,11.946,0.06990312]
[1672745624625,16.68,11.959,11.946,4.06990312]
[1672745625880,4.0,11.958,11.946,0.06990312]
[1672745626723,4.0,11.955,11.946,0.06990312]
[1672745627355,16.68,11.956,11.946,0.06990312]
[1672745627669,47.1958,11.958,11.946,0.06990312]
[1672745627879,47.1958,11.958,11.946,4.06990312]
[1672745628092,16.68,11.959,11.946,4.06990312]
[1672745629980,0.06467063,11.957,11.946,4.0042887]
[1672745631980,0.06467063,11.957,11.949,16.68]
[1672745632186,0.06467063,11.957,11.95,4.0]
[1672745634294,0.06467063,11.957,11.949,0.06239784]
[1672745635758,16.61,11.952,11.949,9.784e-05]
[1672745635973,16.61,11.952,11.939,4.0]
[1672745636180,4.0,11.951,11.939,4.0]
[1672745636810,0.06565253,11.949,11.941,0.06298141]
[1672745648998,16.68,11.951,11.949,0.13953913]
[1672745649208,4.0,11.95,11.942,4.0]
[1672745650048,16.53,11.954,11.942,4.06961861]
[1672745650260,0.06168293,11.95,11.942,4.0]
[1672745650469,0.06168293,11.95,11.942,4.06764059]
[1672745652781,0.06168293,11.95,11.944,49.91942995]
[1672745653102,0.06168293,11.95,11.945,4.0]
[1672745655411,8.293e-05,11.95,11.945,4.0]
[1672745655935,16.68,11.957,11.945,4.0]
[1672745656356,16.68,11.96,11.947,16.68]
[1672745656561,16.68,11.96,11.948,4.0]
[1672745657409,16.68,11.96,11.95,0.06238226]
[1672745657616,16.68,11.96,11.95,4.06238226]
[1672745658561,62.9975,11.964,11.951,16.68]
[1672745658772,46.3175,11.964,11.954,49.91942995]
[1672745658983,46.3175,11.964,11.955,4.0]
[1672745659299,16.68,11.967,11.955,4.0]
[1672745659504,16.68,11.969,11.957,0.0678749]
[1672745659719,4.0,11.968,11.959,0.06785626]
[1672745660032,4.0,11.971,11.959,4.06654404]
[1672745660869,16.68,11.972,11.959,4.06654404]
[1672745661920,63.5895,11.976,11.961,16.68]
[1672745662133,63.5895,11.976,11.964,0.06464425]
[1672745662875,16.68,11.973,11.964,0.06464425]
[1672745663081,16.68,11.971,11.964,0.06464425]
[1672745663304,4.0,11.97,11.964,0.06464425]
[1672745663723,16.68,11.971,11.964,0.06464425]
[1672745664145,16.56,11.967,11.964,0.06464425]
[1672745664357,16.56,11.967,11.961,0.06449046]
[1672745664567,16.68,11.962,11.96,0.07137367]
[1672745664877,4.0,11.961,11.948,4.0]
[1672745665612,0.0631308,11.961,11.948,4.0]
[1672745665829,4.0631308,11.961,11.952,4.06047334]
[1672745666457,4.0631308,11.961,11.952,0.06047334]
[1672745666669,16.68,11.959,11.952,0.06047334]
[1672745666983,4.0,11.958,11.952,0.06047334]
[1672745668143,16.68,11.959,11.952,0.06047334]
[1672745674976,49.0852,11.96,11.952,0.06047334]
[1672745674977,16.68,11.955,11.952,0.06047334]
[1672745675184,16.68,11.955,11.949,0.0669028]
[1672745675499,16.68,11.955,11.948,0.06140855]
[1672745677076,16.612096,11.955,11.948,0.06140855]
[1672745679493,0.06475001,11.956,11.948,0.06140855]
[1672745690632,16.63,11.959,11.956,0.11748155]
[1672745693471,16.68,11.957,11.956,8.155e-05]
[1672745694199,4.0,11.956,11.94,16.65]
[1672745694410,4.0,11.95,11.941,4.0]
[1672745694835,16.68,11.951,11.941,4.0]
[1672745695360,0.06296801,11.95,11.942,0.06104754]
[1672745695571,4.06296801,11.95,11.942,0.06104754]
[1672745695780,0.06296801,11.95,11.942,0.06104754]
[1672745702400,46.82746801,11.95,11.942,0.06104754]
[1672745705977,16.56,11.948,11.942,0.06104754]
[1672745706182,4.0,11.947,11.942,0.06104754]
[1672745706501,16.56,11.948,11.942,0.06104754]
[1672745707866,16.44470863,11.948,11.942,0.06104754]
[1672745709233,4.0,11.947,11.934,49.91942995]
[1672745709546,16.68,11.944,11.934,49.91942995]
[1672745710381,0.06392571,11.943,11.935,4.07147787]
[1672745712914,0.06392571,11.943,11.935,0.07147787]
[1672745718691,0.06392571,11.943,11.935,16.72147787]
[1672745719845,0.06392571,11.943,11.935,16.68147787]
[1672745722580,16.71,11.948,11.943,0.07834892]
[1672745728674,4.0,11.947,11.943,4.892e-05]
[1672745730778,16.71,11.948,11.943,4.892e-05]
[1672745733507,0.08851348,11.943,11.941,0.06631885]
[1672745733722,0.08851348,11.943,11.938,0.07021141]
[1672745734143,4.0,11.942,11.935,16.61]
[1672745734455,16.71,11.941,11.929,4.0]
[1672745734670,4.0,11.94,11.929,4.0]
[1672745735405,0.06915507,11.939,11.93,0.06253175]
[1672745738455,16.71,11.938,11.93,0.06253175]
[1672745738664,16.57,11.935,11.93,0.06253175]
[1672745742651,16.71,11.933,11.93,3.175e-05]
[1672745742862,16.71,11.933,11.92,16.7]
[1672745743074,4.0,11.932,11.921,4.0]
[1672745743291,16.62,11.936,11.924,16.62]
[1672745743496,49.1537,11.938,11.925,4.0]
[1672745743497,65.7237,11.938,11.925,4.0]
[1672745743706,0.06508982,11.936,11.927,0.06986747]
[1672745746653,16.71,11.935,11.927,0.06986747]
[1672745746863,4.0,11.934,11.927,0.06986747]
[1672745749596,16.71,11.935,11.927,0.06986747]
[1672745750122,4.0,11.934,11.927,0.06986747]
[1672745750332,16.71,11.931,11.927,0.06986747]
[1672745751909,4.0,11.93,11.918,63.6865]
[1672745752121,4.0,11.93,11.918,16.63]
[1672745752959,0.06225606,11.928,11.92,0.06390514]
[1672745758212,16.71,11.924,11.92,5.14e-06]
[1672745758422,16.71,11.921,11.92,5.14e-06]
[1672745758633,16.71,11.921,11.904,49.91942995]
[1672745758634,16.71,11.921,11.905,4.0]
[1672745758843,16.71,11.915,11.905,4.0]
[1672745759264,0.06374467,11.914,11.906,0.06380099]
[1672745761676,0.06374467,11.914,11.91,16.63]
[1672745761893,16.71,11.926,11.913,66.62942995]
[1672745762102,4.0,11.925,11.914,4.0]
[1672745762943,0.06085932,11.924,11.915,0.06634806]
[1672745763362,0.06085932,11.924,11.918,4.0]
[1672745763572,0.06085932,11.924,11.92,16.65]
[1672745763990,0.06085932,11.924,11.921,4.0]
[1672745764203,0.06403111,11.927,11.921,4.0]
[1672745764414,0.0676987,11.928,11.92,16.72089518]
[1672745764620,0.0676987,11.928,11.92,0.07089518]
[1672745770621,0.0676987,11.928,11.923,49.91942995]
[1672745770831,0.0676987,11.928,11.924,4.0]
[1672745771255,16.71,11.936,11.924,4.0]
[1672745772201,0.06854016,11.934,11.926,0.06461823]
[1672745785329,16.71,11.936,11.934,0.13431634]
[1672745786171,4.0,11.935,11.934,1.634e-05]
[1672745787225,20.57,11.935,11.918,16.61]
[1672745787540,16.71,11.929,11.918,16.61]
[1672745787750,4.0,11.928,11.918,16.61]
[1672745787964,4.0,11.928,11.915,16.63]
[1672745788172,4.0,11.928,11.916,4.0]
[1672745788381,0.06051909,11.926,11.918,0.06188134]
[1672745791005,0.06051909,11.926,11.918,4.06188134]
[1672745794155,0.06051909,11.926,11.918,0.06188134]
[1672745794476,0.0929088,11.918,11.9,4.0]
[1672745794686,0.0929088,11.918,11.909,16.76]
[1672745795312,0.0929088,11.918,11.911,0.06033726]
[1672745795525,16.6,11.917,11.911,0.06033726]
[1672745795837,4.0,11.916,11.911,0.06033726]
[1672745796047,16.6,11.917,11.911,0.06033726]
[1672745797416,65.0766,11.917,11.911,0.06033726]
[1672745797941,16.76,11.913,11.911,0.06033726]
[1672745798151,4.0,11.912,11.903,66.52942995]
[1672745798573,16.76,11.913,11.903,66.52942995]
[1672745798886,16.76,11.915,11.904,4.0]
[1672745799092,65.2366,11.917,11.905,0.06244554]
[1672745799306,0.06467448,11.914,11.905,0.06244554]
[1672745810336,16.64,11.915,11.914,0.02700167]
[1672745811288,65.1266,11.917,11.914,0.02700167]
[1672745816330,4.0,11.916,11.911,0.06481771]
[1672745816641,16.76,11.915,11.911,0.06481771]
[1672745818640,48.5443838,11.917,11.911,0.06481771]
[1672745818855,65.3043838,11.917,11.911,0.06481771]
[1672745822430,16.74,11.914,11.904,4.0]
[1672745822640,4.0,11.913,11.903,49.91942995]
[1672745823057,16.74,11.914,11.903,49.91942995]
[1672745823474,0.06007694,11.913,11.904,0.06512658]
[1672745823793,0.06007694,11.913,11.904,4.06512658]
[1672745826945,16.6,11.91,11.904,0.06512658]
[1672745827161,4.0,11.909,11.896,4.0]
[1672745827897,50.1135,11.909,11.896,4.0]
[1672745828108,0.07039816,11.907,11.898,0.06710059]
[1672745829365,0.07039816,11.907,11.903,49.91942995]
[1672745829684,0.07039816,11.907,11.904,4.0]
[1672745829897,0.0676433,11.91,11.902,4.0]
[1672745830104,0.0676433,11.91,11.903,49.91942995]
[1672745830315,0.0676433,11.91,11.904,4.0]
[1672745830631,0.0676433,11.91,11.903,49.91942995]
[1672745831573,0.0676433,11.91,11.904,4.0]
[1672745838622,0.0676433,11.91,11.903,116.32462995]
[1672745839465,0.0676433,11.91,11.903,66.4052]
[1672745839673,0.0929088,11.918,11.91,0.08086452]
[1672745839885,16.65,11.916,11.91,0.08086452]
[1672745840095,4.0,11.915,11.91,0.08086452]
[1672745840832,16.65,11.916,11.91,0.08086452]
[1672745847981,4.0,11.915,11.91,6.452e-05]
[1672745848501,4.0,11.913,11.91,6.452e-05]
[1672745851022,16.78,11.914,11.91,6.452e-05]
[1672745854391,65.64414941,11.917,11.91,6.452e-05]
[1672745857853,16.76744941,11.917,11.91,6.452e-05]
[1672745862373,16.60886978,11.917,11.91,6.452e-05]
[1672745863426,16.66,11.914,11.91,6.452e-05]
[1672745863638,4.0,11.913,11.91,6.452e-05]
[1672745864897,16.66,11.914,11.91,6.452e-05]
[1672745876032,16.59093096,11.914,11.91,6.452e-05]
[1672745889587,4.0,11.91,11.895,16.76]
[1672745889792,16.72,11.906,11.894,49.277]
[1672745890007,16.72,11.906,11.893,4.0]
[1672745890746,0.06086225,11.904,11.895,0.06835694]
[1672745891271,0.06086225,11.904,11.896,16.81]
[1672745891582,0.06086225,11.904,11.899,16.81]
[1672745891903,0.06086225,11.904,11.9,4.0]
[1672745893475,16.67,11.911,11.9,4.0]
[1672745894420,0.06551909,11.91,11.901,0.06232399]
[1672745894736,4.06551909,11.91,11.901,0.06232399]
[1672745895049,0.06551909,11.91,11.901,0.06232399]
[1672745895572,0.06551909,11.91,11.902,66.72942995]
[1672745895781,0.06551909,11.91,11.903,4.0]
[1672745901254,0.06551909,11.91,11.902,16.81]
[1672745901466,0.06551909,11.91,11.901,0.06232399]
[1672745904305,16.74,11.909,11.901,0.06232399]
[1672745904517,4.0,11.908,11.901,0.06232399]
[1672745905464,16.74,11.909,11.901,0.06232399]
[1672745907986,16.53620226,11.909,11.901,0.06232399]
[1672745917442,0.06551909,11.91,11.901,0.06232399]
[1672745920381,16.81,11.911,11.91,0.10261535]
[1672745922381,16.81,11.911,11.906,0.0611476]
[1672745926160,16.81,11.909,11.896,644.997]
[1672745926375,16.81,11.907,11.896,575.0]
[1672745926588,4.0,11.906,11.896,575.0]
[1672745926801,4.0,11.906,11.897,4.0]
[1672745927108,0.06801601,11.906,11.897,4.06273937]
[1672745929420,16.81,11.904,11.897,0.06273937]
[1672745930261,16.81,11.904,11.897,4.06273937]
[1672745930788,0.06801601,11.906,11.897,4.06273937]
[1672745935622,16.81,11.899,11.896,404.12354725]
[1672745935935,16.81,11.899,11.877,63.15]
[1672745935936,4.0,11.898,11.893,575.0]
[1672745936355,16.81,11.899,11.892,49.91942995]
[1672745936779,0.06307928,11.9,11.892,49.91942995]
[1672745937091,0.06739712,11.9,11.892,49.98284114]
[1672745937825,0.06739712,11.9,11.893,20.81]
[1672745938046,0.06739712,11.9,11.894,4.0]
[1672745944976,0.06739712,11.9,11.892,0.06341119]
[1672745945501,0.06739712,11.9,11.892,49.98284114]
[1672745945713,0.06739712,11.9,11.892,0.06341119]
[1672745946237,0.06739712,11.9,11.892,49.98284114]
[1672745948236,16.81,11.899,11.892,49.98284114]
[1672745948443,4.0,11.898,11.892,49.98284114]
[1672745948653,3.85405476,11.898,11.892,49.98284114]
[1672745948863,16.81,11.899,11.892,49.98284114]
[1672745952332,16.81,11.899,11.892,0.06341119]
[1672745954120,16.79,11.893,11.892,0.06341119]
[1672745954330,16.79,11.893,11.888,0.06511211]
[1672745954542,16.79,11.893,11.886,0.06887625]
[1672745954747,16.79,11.893,11.885,0.06527723]
[1672745955271,4.0,11.892,11.885,0.06527723]
[1672745957073,16.79,11.893,11.885,0.06527723]
[1672745958849,16.74,11.891,11.885,0.06527723]
[1672745959261,0.06629759,11.894,11.885,0.06527723]
[1672745961050,0.06629759,11.894,11.892,49.91942995]
[1672745961258,16.73,11.901,11.893,4.0]
[1672745961472,16.7962428,11.901,11.893,4.06015315]
[1672745961684,16.63824464,11.901,11.893,4.06015315]
[1672745963263,16.63824464,11.901,11.893,0.06015315]
[1672745964833,16.9062428,11.901,11.893,0.06015315]
[1672745967468,16.9062428,11.901,11.893,4.06015315]
[1672745968831,16.9062428,11.901,11.893,0.06015315]
[1672745969883,0.11842358,11.893,11.892,49.91942995]
[1672745970088,16.84,11.901,11.893,4.0]
[1672745970721,16.9053981,11.901,11.893,4.06979481]
[1672745973455,16.9053981,11.901,11.893,0.06979481]
[1672745977760,16.9053981,11.901,11.893,4.06979481]
[1672745977975,16.75,11.904,11.894,16.79]
[1672745978185,16.75,11.904,11.895,4.0]
[1672745979025,16.81270562,11.904,11.895,4.0]
[1672745979235,16.81270562,11.904,11.895,4.06803985]
[1672745983338,0.06270562,11.904,11.896,16.72]
[1672745983548,0.00270562,11.904,11.901,49.91942995]
[1672745983758,16.79,11.909,11.902,4.0]
[1672745984283,16.78,11.912,11.902,4.0]
[1672745984496,0.06676218,11.911,11.903,0.06091709]
[1672745992479,16.84,11.91,11.903,0.06091709]
[1672745992790,4.0,11.909,11.903,0.06091709]
[1672745992994,16.84,11.91,11.903,0.06091709]
[1672745997416,16.61805798,11.91,11.903,0.06091709]
[1672745998043,4.0,11.903,11.895,575.0]
[1672745998254,4.0,11.903,11.892,4.0]
[1672745998466,16.79,11.904,11.892,4.0]
[1672745998885,0.06461137,11.902,11.892,4.0]
[1672745999097,0.06461137,11.902,11.894,0.0609464]
[1672746000987,16.81,11.901,11.894,0.0609464]
[1672746001193,4.0,11.9,11.894,0.0609464]
[1672746001721,16.81,11.901,11.894,0.0609464]
[1672746002453,16.84,11.898,11.894,0.0609464]
[1672746004565,0.1130579,11.894,11.887,49.2992]
[1672746007509,0.1130579,11.894,11.888,4.0]
[1672746007920,0.1130579,11.894,11.891,49.91942995]
[1672746008128,0.1130579,11.894,11.892,4.0]
[1672746011810,5.79e-05,11.894,11.892,4.0]
[1672746013181,16.84,11.9,11.892,4.0]
[1672746013702,16.79,11.902,11.892,4.0]
[1672746014331,0.07009232,11.901,11.893,0.06158661]
[1672746014749,4.07009232,11.901,11.893,0.06158661]
[1672746015067,0.07009232,11.901,11.893,0.06158661]
[1672746015904,0.07009232,11.901,11.893,16.87158661]
[1672746016118,0.07009232,11.901,11.894,4.0]
[1672746018643,0.07009232,11.901,11.893,0.06158661]
[1672746023689,16.84,11.899,11.893,0.06158661]
[1672746028205,16.69017728,11.899,11.893,0.06158661]
[1672746032511,16.72,11.897,11.893,0.06158661]
[1672746038919,16.69,11.897,11.893,0.06158661]
[1672746040602,16.56276372,11.897,11.893,0.06158661]
[1672746041440,16.85,11.899,11.893,0.06158661]
[1672746049740,16.85,11.897,11.893,0.06158661]
[1672746055523,16.75678249,11.897,11.893,0.06158661]
[1672746056364,16.85,11.899,11.893,0.06158661]
[1672746069291,16.92009232,11.901,11.893,0.06158661]
[1672746080216,0.07009232,11.901,11.893,0.06158661]
[1672746083466,16.85,11.903,11.901,0.05602965]
[1672746085889,0.0019371,11.906,11.901,0.05602965]
[1672746086096,0.0019371,11.906,11.901,4.05602965]
[1672746092192,0.0019371,11.906,11.901,0.05602965]
[1672746093351,16.69,11.904,11.901,0.05602965]
[1672746093561,4.0,11.903,11.901,0.05602965]
[1672746094087,16.69,11.904,11.901,0.05602965]
[1672746094298,0.11464657,11.901,11.898,0.06461996]
[1672746094506,0.11464657,11.901,11.895,0.06927124]
[1672746094716,0.11464657,11.901,11.895,4.06927124]
[1672746095769,0.11464657,11.901,11.895,0.06927124]
[1672746105441,16.74,11.897,11.895,0.00110104]
[1672746105651,4.0,11.896,11.886,4.0]
[1672746106178,16.74,11.897,11.886,4.0]
[1672746106592,0.06712017,11.896,11.887,0.06988535]
[1672746114578,0.06712017,11.896,11.887,8.535e-05]
[1672746114579,16.69,11.893,11.887,8.535e-05]
[1672746114794,16.69,11.888,11.871,16.85]
[1672746115105,16.81,11.884,11.872,4.0]
[1672746115424,16.85,11.885,11.872,4.0]
[1672746115634,16.85,11.885,11.872,50.1595]
[1672746115845,0.06160286,11.883,11.874,0.06934005]
[1672746116055,0.06160286,11.883,11.88,49.91942995]
[1672746116260,0.06803331,11.886,11.877,0.06114931]
[1672746116473,0.06933243,11.886,11.881,4.0]
[1672746117737,0.06933243,11.886,11.88,49.91942995]
[1672746117944,0.06933243,11.886,11.878,53.5895]
[1672746118153,0.06933243,11.886,11.88,49.91942995]
[1672746118471,0.06933243,11.886,11.881,4.0]
[1672746120047,0.06933243,11.886,11.88,49.91942995]
[1672746120257,0.06933243,11.886,11.879,4.0]
[1672746120888,0.06933243,11.886,11.881,4.0]
[1672746122570,0.06933243,11.886,11.88,49.91942995]
[1672746123725,0.06933243,11.886,11.879,4.0]
[1672746123937,0.06933243,11.886,11.88,49.91942995]
[1672746124146,0.06933243,11.886,11.881,4.0]
[1672746124566,16.91933243,11.886,11.881,4.0]
[1672746124777,16.91933243,11.886,11.88,49.91942995]
[1672746126773,16.91933243,11.886,11.878,53.5895]
[1672746126984,16.91933243,11.886,11.878,49.5895]
[1672746128357,16.70131103,11.886,11.879,4.0]
[1672746129087,16.70131103,11.886,11.878,49.5895]
[1672746129295,16.69,11.884,11.877,0.06948724]
[1672746129508,16.69,11.884,11.876,0.06550168]
[1672746137920,16.85,11.882,11.876,0.06550168]
[1672746140654,4.0,11.881,11.876,1.68e-06]
[1672746143911,16.85,11.882,11.876,1.68e-06]
[1672746145386,16.85,11.878,11.876,1.68e-06]
[1672746145700,4.0,11.877,11.873,0.07030338]
[1672746145905,4.0,11.877,11.871,4.06256447]
[1672746146222,16.85,11.875,11.87,49.98871888]
[1672746146433,16.85,11.875,11.868,0.06904105]
[1672746148114,16.85,11.875,11.87,49.91942995]
[1672746148529,16.85,11.875,11.868,0.06904105]
[1672746148746,16.69,11.872,11.868,0.06904105]
[1672746148955,4.0,11.871,11.868,0.06904105]
[1672746149165,4.0,11.871,11.865,0.06279292]
[1672746149370,16.75748247,11.872,11.864,0.06630563]
[1672746149586,0.06748247,11.872,11.864,0.06630563]
[1672746149797,0.06748247,11.872,11.865,16.7]
[1672746150011,0.06748247,11.872,11.87,49.91942995]
[1672746150214,0.06171673,11.875,11.871,4.0]
[1672746150427,0.07144216,11.877,11.871,4.0]
[1672746153578,16.85,11.878,11.877,0.16274099]
[1672746156836,4.15995901,11.877,11.862,16.85]
[1672746157052,16.85,11.876,11.869,49.91942995]
[1672746157362,16.85,11.876,11.87,4.0]
[1672746157783,16.81,11.881,11.87,4.0]
[1672746157994,4.06506969,11.88,11.871,0.07051591]
[1672746158518,0.06506969,11.88,11.871,0.07051591]
[1672746160618,4.0,11.896,11.879,49.91942995]
[1672746160830,4.0,11.896,11.88,4.0]
[1672746161140,16.81,11.883,11.872,4.0]